fUSD/lending_fUSD_20240520
["ID","MTS","AMOUNT","RATE_DAILY","PERIOD"]
[327542271,1716201051998,-890.92,0.000274,2]
[327542272,1716201052007,-890.92,0.000274,2]
[327542273,1716201052015,-890.92,0.000274,2]
[327542274,1716201052025,-890.92,0.000274,2]
[327542275,1716201052034,-890.92,0.000274,2]
[327542276,1716201052044,-890.92,0.000274,2]
[327542277,1716201052053,-160.50893316,0.00027431,2]
[327542278,1716201052062,-157.052015,0.00027448,18]
[327542279,1716201052071,-5156.14,0.000275,5]
[327542280,1716201052080,-300.74016967,0.00027534,2]
[327542281,1716201052089,-235.71183241,0.00027535,2]
[327542282,1716201052099,-161.287692,0.0002754,2]
[327542283,1716201052108,-183.345623,0.0002754,2]
[327542284,1716201052118,-2459.187498,0.0002754,2]
[327542285,1716201052127,-3670.678913,0.0002754,2]
[327542286,1716201052136,-208.474346,0.0002754,2]
[327542287,1716201052145,-241.931537,0.0002754,2]
[327542288,1716201052156,-276.998533,0.0002754,2]
[327542289,1716201052166,-161.166692,0.0002754,2]
[327542290,1716201052176,-782.621591,0.0002754,2]
[327542291,1716201052186,-18780.872207,0.0002754,2]
[327542292,1716201052195,-169.670283,0.0002754,2]
[327542293,1716201052205,-171.37591189,0.00027543,2]
[327542294,1716201052215,-153.02819881,0.00027543,2]
[327542295,1716201052224,-162.67573834,0.00027567,2]
[327542296,1716201052236,-168.24161347,0.00027598,2]
[327542297,1716201052245,-1664.3597812,0.00027627,2]
[327542298,1716201052255,-700.0,0.0002763,2]
[327542299,1716201052264,-2124.41062271,0.00027643,2]
[327542300,1716201052273,-158.84348736,0.00027683,2]
[327542301,1716201052282,-3000.0,0.000277,2]
[327542302,1716201052291,-166.66666667,0.0002772,2]
[327542303,1716201052301,-544.0,0.00027723,2]
[327542304,1716201052311,-157.052015,0.00027748,18]
[327542305,1716201052321,-150.689591,0.00027764,2]
[327542306,1716201052330,-160.2,0.00027766,7]
[327542307,1716201052339,-220.0,0.0002777,2]
[327542308,1716201052349,-216.0,0.0002777,2]
[327542309,1716201052358,-207.0,0.0002777,2]
[327542310,1716201052368,-169.1813528,0.00027814,2]
[327542311,1716201052378,-152.9731038,0.00027818,2]
[327542312,1716201052387,-474.65,0.0002785,2]
[327542313,1716201052396,-161.287692,0.00027876,2]
[327542314,1716201052405,-183.345623,0.00027876,2]
[327542315,1716201052415,-2459.187498,0.00027876,2]
[327542316,1716201052424,-3670.678913,0.00027876,2]
[327542317,1716201052434,-208.474346,0.00027876,2]
[327542318,1716201052443,-241.931537,0.00027876,2]
[327542319,1716201052453,-276.998533,0.00027876,2]
[327542320,1716201052468,-161.166692,0.00027876,2]
[327542321,1716201052490,-782.621591,0.00027876,2]
[327542322,1716201052508,-18780.872207,0.00027876,2]
[327542323,1716201052526,-270.02782498,0.00027898,2]
[327542324,1716201052547,-813.71626425,0.00027926,2]
[327542325,1716201052567,-154.81580749,0.00027966,2]
[327542326,1716201052585,-2194.43,0.00028,2]
[327542327,1716201052602,-1628.84965,0.00028,2]
[327542328,1716201052617,-998.96,0.00028,2]
[327542329,1716201052635,-406.852721,0.00028,2]
[327542330,1716201052655,-315.7,0.00028,2]
[327542331,1716201052670,-200.0,0.00028,2]
[327542332,1716201052685,-168.11636313,0.00028005,2]
[327542333,1716201052703,-170.50160017,0.0002801,2]
[327542334,1716201052718,-154.81580749,0.00028037,2]
[327542335,1716201052735,-162.0022015,0.00028058,2]
[327542336,1716201052748,-426.99,0.00028107,2]
[327542337,1716201052764,-351.8,0.00028107,2]
[327542338,1716201052779,-150.0,0.00028107,2]
[327542339,1716201052795,-841.12,0.00028107,2]
[327542340,1716201052810,-524.02,0.00028107,2]
[327542341,1716201052826,-301.58,0.00028107,2]
[327542342,1716201052842,-351.8,0.00028107,2]
[327542343,1716201052861,-150.0,0.00028107,2]
[327542344,1716201052875,-351.8,0.00028107,2]
[327542345,1716201052890,-150.0,0.00028107,2]
[327542346,1716201052904,-150.0,0.00028107,2]
[327542347,1716201052919,-701.44,0.00028107,2]
[327542348,1716201052934,-524.02,0.00028107,2]
[327542349,1716201052949,-150.0,0.00028107,2]
[327542350,1716201052963,-150.0,0.00028107,2]
[327542351,1716201052991,-524.02,0.00028107,2]
[327542352,1716201053018,-895.18,0.00028107,2]
[327542353,1716201053041,-163.46,0.00028107,2]
[327542354,1716201053061,-163.46,0.00028107,2]
[327542355,1716201053080,-163.46,0.00028107,2]
[327542356,1716201053099,-421.25,0.00028107,2]
[327542357,1716201053116,-150.859314,0.00028135,2]
[327542358,1716201053134,-813.71626425,0.00028146,2]
[327542359,1716201053151,-166.66666667,0.00028155,2]
[327542360,1716201053171,-700.0,0.00028178,2]
[327542361,1716201053187,-152.18902764,0.00028179,2]
[327542362,1716201053205,-186.84082463,0.00028206,2]
[327542363,1716201053221,-161.287692,0.00028212,2]
[327542364,1716201053238,-183.345623,0.00028212,2]
[327542365,1716201053254,-2459.187498,0.00028212,2]
[327542366,1716201053269,-3670.678913,0.00028212,2]
[327542367,1716201053285,-208.474346,0.00028212,2]
[327542368,1716201053300,-241.931537,0.00028212,2]
[327542369,1716201053316,-276.998533,0.00028212,2]
[327542370,1716201053332,-161.166692,0.00028212,2]
[327542371,1716201053347,-782.621591,0.00028212,2]
[327542372,1716201053362,-18780.872207,0.00028212,2]
[327542373,1716201053378,-169.670283,0.00028212,2]
[327542374,1716201053393,-150.869736,0.00028212,2]
[327542375,1716201053410,-150.869735,0.00028212,2]
[327542376,1716201053426,-150.689591,0.00028212,2]
[327542377,1716201053442,-538.02243809,0.00028213,2]
[327542378,1716201053457,-2000.0,0.00028219,2]
[327542379,1716201053472,-216.24329471,0.00028246,2]
[327542380,1716201053487,-153.02819881,0.00028269,2]
[327542381,1716201053502,-538.02243809,0.00028371,2]
[327542382,1716201053518,-220.0,0.0002838,2]
[327542383,1716201053534,-216.0,0.0002838,2]
[327542384,1716201053549,-207.0,0.0002838,2]
[327542385,1716201053564,-153.93988,0.00028385,2]
[327542386,1716201053579,-153.02819881,0.00028388,2]
[327542387,1716201053594,-152.18902764,0.00028416,2]
[327542388,1716201053610,-157.052015,0.00028448,20]
[327542389,1716201053624,-155.65669387,0.00028502,2]
[327542390,1716201053640,-270.02782498,0.00028508,2]
[327542391,1716201053654,-186.84082463,0.00028616,2]
[327542392,1716201053668,-166.29644052,0.0002865,2]
[327542393,1716201053683,-235.71183241,0.00028653,2]
[327542394,1716201053698,-270.02782498,0.00028708,2]
[327542395,1716201053713,-700.0,0.00028726,2]
[327542396,1716201053728,-300.0,0.00028741,2]
[327542397,1716201053743,-157.052015,0.00028748,20]
[327542398,1716201053757,-813.71626425,0.00028755,2]
[327542399,1716201053771,-1310.48,0.00028767,6]
[327542400,1716201053786,-300.0,0.00028883,2]
[327542401,1716201053801,-150.0,0.00028883,2]
[327542402,1716201053816,-150.0,0.00028883,2]
[327542403,1716201053831,-150.0,0.00028883,2]
[327542404,1716201053846,-163.46,0.00028883,2]
[327542405,1716201053860,-163.46,0.00028883,2]
[327542406,1716201053875,-151.23,0.00028883,2]
[327542407,1716201053891,-150.0,0.00028883,2]
[327542408,1716201053902,-150.0,0.00028883,2]
[327542409,1716201053911,-163.46,0.00028883,2]
[327542410,1716201053922,-152.77,0.00028883,2]
[327542411,1716201053933,-163.46,0.00028883,2]
[327542412,1716201053949,-420.73,0.00028884,2]
[327542413,1716201053959,-420.73,0.00028884,2]
[327542414,1716201053970,-152.08,0.00028884,2]
[327542415,1716201053980,-319.0,0.00028884,2]
[327542416,1716201053991,-351.8,0.00028884,2]
[327542417,1716201054001,-420.73,0.00028884,2]
[327542418,1716201054011,-152.39,0.00028884,2]
[327542419,1716201054021,-351.8,0.00028884,2]
[327542420,1716201054031,-150.0,0.00028884,2]
[327542421,1716201054040,-150.0,0.00028884,2]
[327542422,1716201054050,-351.8,0.00028884,2]
[327542423,1716201054444,-150.0,0.00028884,2]
[327542424,1716201054482,-420.73,0.00028884,2]
[327542425,1716201054499,-351.8,0.00028884,2]
[327542426,1716201054509,-399.11,0.00028884,2]
[327542427,1716201054519,-163.46,0.00028884,2]
[327542428,1716201054528,-420.73,0.00028884,2]
[327542429,1716201054538,-150.0,0.00028884,2]
[327542430,1716201054547,-351.8,0.00028884,2]
[327542431,1716201054558,-163.46,0.00028884,2]
[327542432,1716201054567,-163.46,0.00028884,2]
[327542433,1716201054577,-420.73,0.00028884,2]
[327542434,1716201054587,-351.8,0.00028884,2]
[327542435,1716201054597,-163.46,0.00028884,2]
[327542436,1716201054607,-420.73,0.00028884,2]
[327542437,1716201054617,-163.46,0.00028884,2]
[327542438,1716201054627,-163.46,0.00028884,2]
[327542439,1716201054637,-351.8,0.00028884,2]
[327542440,1716201054647,-163.46,0.00028884,2]
[327542441,1716201054656,-351.8,0.00028884,2]
[327542442,1716201054666,-163.46,0.00028884,2]
[327542443,1716201054676,-162.83,0.00028884,2]
[327542444,1716201054686,-351.8,0.00028884,2]
[327542445,1716201054697,-351.8,0.00028884,2]
[327542446,1716201054707,-701.77,0.00028884,2]
[327542447,1716201054717,-348.6,0.00028884,2]
[327542448,1716201054727,-420.73,0.00028884,2]
[327542449,1716201054736,-1573.96,0.000289,2]
[327542450,1716201054746,-1889.76,0.000289,2]
[327542451,1716201054756,-315.7,0.00028935,2]
[327542452,1716201054766,-77599.07874434,0.00029,2]
[327542453,1716201054776,-570.59143142,0.00029,2]
[327542454,1716201054786,-5000.0,0.00029,2]
[327542455,1716201054795,-687.0,0.00029,2]
[327542456,1716201054805,-495.0,0.00029,13]
[327542457,1716201054815,-768.86,0.00029,2]
[327542458,1716201054824,-687.0,0.00029,2]
[327542459,1716201054835,-217.0,0.00029,2]
[327542460,1716201054844,-220.0,0.00029,2]
[327542461,1716201054853,-216.0,0.00029,2]
[327542462,1716201054863,-207.0,0.00029,2]
[327542463,1716201054872,-850.0,0.00029,2]
[327542464,1716201054882,-850.0,0.00029,2]
[327542465,1716201054891,-784.8,0.00029,2]
[327542466,1716201054900,-1416.6294,0.00029,2]
[327542467,1716201054910,-3074.4874,0.00029,2]
[327542468,1716201054919,-186.84082463,0.00029006,2]
[327542469,1716201054928,-2000.0,0.00029041,2]
[327542470,1716201054939,-235.71183241,0.00029137,2]
[327542471,1716201054948,-186.84082463,0.00029142,2]
[327542472,1716201054957,-813.71626425,0.00029176,2]
[327542473,1716201054967,-196.0,0.0002926,6]
[327542474,1716201054976,-235.71183241,0.00029264,2]
[327542475,1716201054986,-700.0,0.00029274,2]
[327542476,1716201054996,-160.50893316,0.00029294,2]
[327542477,1716201055005,-998.96,0.00029325,2]
[327542478,1716201055015,-157.38762473,0.00029342,2]
[327542479,1716201055025,-2604.67361667,0.000294,2]
[327542480,1716201055034,-967.78835337,0.00029437,2]
[327542481,1716201055043,-157.0521,0.00029448,24]
[327542482,1716201055052,-813.71626425,0.00029459,2]
[327542483,1716201055062,-186.84082463,0.00029491,2]
[327542484,1716201055071,-152.18902764,0.00029491,2]
[327542485,1716201055081,-225.69631253,0.000295,3]
[327542486,1716201055090,-226.195908,0.000295,6]
[327542487,1716201055099,-813.71626425,0.0002951,2]
[327542488,1716201055108,-967.78835337,0.000296,2]
[327542489,1716201055117,-154.61721695,0.00029605,2]
[327542490,1716201055127,-163.46,0.00029705,2]
[327542491,1716201055136,-163.46,0.00029705,2]
[327542492,1716201055145,-163.46,0.00029705,2]
[327542493,1716201055157,-157.052014,0.00029748,14]
[327542494,1716201055167,-2305.02475404,0.0002977,4]
[327542495,1716201055176,-154.81580749,0.00029774,2]
[327542496,1716201055186,-3361.87070199,0.000298,2]
[327542497,1716201055197,-501.7819935,0.000298,4]
[327542498,1716201055208,-1113.52,0.000298,6]
[327542499,1716201055217,-151.882096,0.000298,7]
[327542500,1716201055227,-151.0,0.000298,7]
[327542501,1716201055237,-151.0,0.000298,7]
[327542502,1716201055246,-286.115242,0.000298,7]
[327542503,1716201055256,-151.0,0.000298,7]
[327542504,1716201055265,-154.61921,0.000298,7]
[327542505,1716201055275,-151.0,0.000298,7]
[327542506,1716201055284,-151.0,0.000298,7]
[327542507,1716201055294,-151.0,0.000298,7]
[327542508,1716201055303,-151.0,0.000298,7]
[327542509,1716201055313,-168.634706,0.000298,7]
[327542510,1716201055322,-168.634706,0.000298,7]
[327542511,1716201055332,-151.0,0.000298,7]
[327542512,1716201055342,-220.37438,0.000298,7]
[327542513,1716201055352,-210.450223,0.000298,7]
[327542514,1716201055362,-210.450223,0.000298,7]
[327542515,1716201055372,-179.283558,0.000298,7]
[327542516,1716201055381,-179.283558,0.000298,7]
[327542517,1716201055392,-151.0,0.000298,7]
[327542518,1716201055401,-663.535839,0.000298,7]
[327542519,1716201055411,-413.812678,0.000298,7]
[327542520,1716201055422,-663.535839,0.000298,7]
[327542521,1716201055432,-413.812678,0.000298,7]
[327542522,1716201055444,-151.0,0.000298,7]
[327542523,1716201055453,-151.0,0.000298,7]
[327542524,1716201055463,-151.0,0.000298,7]
[327542525,1716201055473,-299.122436,0.000298,7]
[327542526,1716201055482,-151.0,0.000298,7]
[327542527,1716201055491,-272.021636,0.000298,7]
[327542528,1716201055500,-272.021636,0.000298,7]
[327542529,1716201055510,-151.0,0.000298,7]
[327542530,1716201055519,-306.670924,0.000298,7]
[327542531,1716201055529,-306.670924,0.000298,7]
[327542532,1716201055538,-151.0,0.000298,7]
[327542533,1716201055547,-151.0,0.000298,7]
[327542534,1716201055557,-177.867016,0.000298,7]
[327542535,1716201055566,-276.115431,0.000298,7]
[327542536,1716201055575,-271.501696,0.000298,7]
[327542537,1716201055584,-276.115431,0.000298,7]
[327542538,1716201055594,-151.0,0.000298,7]
[327542539,1716201055603,-151.0,0.000298,7]
[327542540,1716201055613,-151.0,0.000298,7]
[327542541,1716201055622,-700.0,0.00029822,2]
[327542542,1716201055631,-151.0,0.00029845,7]
[327542543,1716201055641,-155.077526,0.00029845,7]
[327542544,1716201055650,-151.0,0.00029845,7]
[327542545,1716201055659,-151.0,0.00029845,7]
[327542546,1716201055669,-403.974415,0.00029845,7]
[327542547,1716201055678,-403.974415,0.00029845,7]
[327542548,1716201055687,-151.0,0.00029845,7]
[327542549,1716201055696,-151.0,0.00029845,7]
[327542550,1716201055705,-151.0,0.00029845,7]
[327542551,1716201055714,-151.0,0.00029845,7]
[327542552,1716201055723,-157.254312,0.00029845,7]
[327542553,1716201055731,-151.0,0.00029845,7]
[327542554,1716201055740,-182.469537,0.00029845,7]
[327542555,1716201055750,-182.469537,0.00029845,7]
[327542556,1716201055759,-151.0,0.00029845,7]
[327542557,1716201055767,-151.0,0.00029845,7]
[327542558,1716201055776,-151.0,0.00029845,7]
[327542559,1716201055785,-151.0,0.00029845,7]
[327542560,1716201055798,-443.891968,0.00029845,7]
[327542561,1716201055809,-443.891968,0.00029845,7]
[327542562,1716201055820,-2000.0,0.00029863,2]
[327542563,1716201055830,-315.7,0.0002987,2]
[327542564,1716201055841,-214.12399105,0.0002988,30]
[327542565,1716201055851,-151.0,0.00029899,7]
[327542566,1716201055860,-151.0,0.00029899,7]
[327542567,1716201055870,-153.07954,0.00029899,7]
[327542568,1716201055879,-151.0,0.00029899,7]
[327542569,1716201055888,-151.0,0.00029899,7]
[327542570,1716201055898,-151.0,0.00029899,7]
[327542571,1716201055908,-153.462701,0.00029899,7]
[327542572,1716201055917,-151.0,0.00029899,7]
[327542573,1716201055926,-151.0,0.00029899,7]
[327542574,1716201055938,-151.0,0.00029899,7]
[327542575,1716201055948,-151.0,0.00029899,7]
[327542576,1716201055958,-151.0,0.00029899,7]
[327542577,1716201055968,-151.0,0.00029899,7]
[327542578,1716201055977,-151.0,0.00029899,7]
[327542579,1716201055987,-193.963271,0.00029899,7]
[327542580,1716201055997,-153.165156,0.00029899,7]
[327542581,1716201056007,-193.963271,0.00029899,7]
[327542582,1716201056019,-151.0,0.00029899,7]
[327542583,1716201056029,-151.0,0.00029899,7]
[327542584,1716201056038,-151.0,0.00029899,7]
[327542585,1716201056048,-566.348239,0.00029899,7]
[327542586,1716201056057,-566.348239,0.00029899,7]
[327542587,1716201056066,-151.924685,0.00029899,7]
[327542588,1716201056076,-152.555252,0.00029899,7]
[327542589,1716201056085,-151.0,0.00029899,7]
[327542590,1716201056095,-207.770928,0.00029899,7]
[327542591,1716201056104,-151.650633,0.00029899,7]
[327542592,1716201056113,-207.770928,0.00029899,7]
[327542593,1716201056124,-263.817337,0.00029899,7]
[327542594,1716201056134,-151.0,0.00029899,7]
[327542595,1716201056143,-263.817337,0.00029899,7]
[327542596,1716201056154,-151.0,0.00029899,7]
[327542597,1716201056169,-151.0,0.00029899,7]
[327542598,1716201056178,-294.065116,0.00029899,7]
[327542599,1716201056188,-294.065116,0.00029899,7]
[327542600,1716201056199,-459.806287,0.00029899,7]
[327542601,1716201056209,-459.806287,0.00029899,7]
[327542602,1716201056219,-72694.84549197,0.000299,2]
[327542603,1716201056228,-216.24329471,0.00029962,2]
[327542604,1716201056240,-166.83499667,0.00029963,2]
[327542605,1716201056249,-1124.639888,0.0002998,10]
[327542606,1716201056261,-154.61721695,0.00029996,2]
[327542607,1716201056270,-1000.0,0.0003,5]
[327542608,1716201056280,-190.26678305,0.0003,4]
[327542609,1716201056289,-348.16502257,0.0003,2]
[327542610,1716201056298,-1748.79976411,0.0003,4]
[327542611,1716201056307,-5697.95827546,0.0003,2]
[327542612,1716201056317,-2180.36712687,0.0003,2]
[327542613,1716201056326,-1706.76410619,0.0003,2]
[327542614,1716201056336,-113294.25462529,0.0003,2]
[327542615,1716201056831,-150.0,0.0002358,2]
[327542616,1716201056841,-150.0,0.00027285,2]
[327542617,1716201056851,-351.8,0.00027285,2]
[327542618,1716201056860,-36.88801123,0.00028883,2]
[327542619,1716201060123,-587.05897454,0.00022533,2]
[327542620,1716201060132,-414.82,0.00022809,2]
[327542621,1716201060141,-150.0,0.00022941,2]
[327542622,1716201060151,-150.0,0.00023013,2]
[327542623,1716201060164,-150.0,0.00023059,2]
[327542624,1716201060173,-150.0,0.00023108,2]
[327542625,1716201060183,-150.0,0.00023128,2]
[327542626,1716201060194,-150.0,0.00023196,2]
[327542627,1716201060204,-150.0,0.000232,2]
[327542628,1716201060213,-150.0,0.00023206,2]
[327542629,1716201060222,-150.0,0.00023233,2]
[327542630,1716201060231,-150.0,0.00023266,2]
[327542631,1716201060243,-150.0,0.00023327,2]
[327542632,1716201060253,-150.0,0.00023363,2]
[327542633,1716201060262,-150.0,0.00023368,2]
[327542634,1716201060272,-150.0,0.00023387,2]
[327542635,1716201060281,-150.0,0.00023393,2]
[327542636,1716201060291,-110.05382546,0.00023412,2]
[327542637,1716201060302,-39.94617454,0.00023412,2]
[327542638,1716201060312,-150.0,0.00023476,2]
[327542639,1716201060321,-530.01181305,0.00023488,2]
[327542640,1716201060332,-337.08969517,0.00023488,2]
[327542641,1716201085743,-3587.95582023,9.726e-05,2]
[327542642,1716201085765,-412.04417977,9.727e-05,2]
[327542643,1716201086530,-4000.0,9.727e-05,2]
[327542644,1716201086841,-3234.28049454,9.727e-05,2]
[327542645,1716201086862,-765.71950546,9.727e-05,2]
[327542646,1716201087194,-179.82669371,9.727e-05,2]
[327542647,1716201087219,-3820.17330629,9.727e-05,2]
[327542648,1716201087570,-4000.0,9.727e-05,2]
[327542649,1716201088098,-4000.0,9.727e-05,2]
[327542650,1716201088877,-4000.0,9.727e-05,2]
[327542651,1716201089004,-4000.0,9.727e-05,2]
[327542652,1716201089232,-4000.0,9.727e-05,2]
[327542653,1716201089633,-4000.0,9.727e-05,2]
[327542654,1716201090006,-4000.0,9.727e-05,2]
[327542655,1716201090345,-4000.0,9.727e-05,2]
[327542656,1716201090726,-4000.0,9.727e-05,2]
[327542657,1716201091106,-4000.0,9.727e-05,2]
[327542658,1716201091448,-4000.0,9.727e-05,2]
[327542659,1716201091771,-4000.0,9.727e-05,2]
[327542660,1716201092149,-4000.0,9.727e-05,2]
[327542661,1716201092538,-4000.0,9.727e-05,2]
[327542662,1716201092840,-4000.0,9.727e-05,2]
[327542663,1716201093205,-4000.0,9.727e-05,2]
[327542664,1716201095817,-4000.0,9.727e-05,2]
[327542665,1716201098600,-4000.0,9.727e-05,2]
[327542666,1716201099582,-212.76119854,9.726e-05,2]
[327542667,1716201099604,-3787.23880146,9.727e-05,2]
[327542668,1716201099810,-210.64061224,9.726e-05,2]
[327542669,1716201099832,-3789.35938776,9.727e-05,2]
[327542670,1716201100791,-4000.0,9.727e-05,2]
[327542671,1716201196461,-4000.0,9.24e-05,2]
[327542672,1716201198428,-4000.0,9.24e-05,2]
[327542673,1716201199036,-4000.0,9.24e-05,2]
[327542674,1716201199632,-4000.0,9.24e-05,2]
[327542675,1716201200249,-155.79906302,8.752e-05,2]
[327542676,1716201200275,-3844.20093698,9.239e-05,2]
[327542677,1716201244701,-955.79803048,8.777e-05,2]
[327542678,1716201244723,-5155.79906302,9.239e-05,2]
[327542679,1716201244744,-623.47972891,9.239e-05,2]
[327542680,1716201244768,-362.02673304,9.239e-05,2]
[327542681,1716201244789,-292.35374371,9.239e-05,2]
[327542682,1716201244809,-945.5461607,9.239e-05,2]
[327542683,1716201244829,-173.51087384,9.239e-05,2]
[327542684,1716201244851,-1360.30965247,9.239e-05,2]
[327542685,1716201244871,-362.16409873,9.239e-05,2]
[327542686,1716201244891,-289.22433229,9.239e-05,2]
[327542687,1716201244911,-7518.67413038,9.239e-05,2]
[327542688,1716201244931,-27310.03582373,9.24e-05,2]
[327542689,1716201244950,-939.36800953,9.724e-05,2]
[327542690,1716201244970,-234.22233037,9.724e-05,2]
[327542691,1716201245229,-540.85091675,9.724e-05,2]
[327542692,1716201245251,-686.19599141,9.724e-05,2]
[327542693,1716201245275,-155.0,9.725e-05,2]
[327542694,1716201245298,-304.35258554,9.725e-05,2]
[327542695,1716201245321,-150.0,9.725e-05,2]
[327542696,1716201245345,-235.39242257,9.726e-05,2]
[327542697,1716201245365,-812.53302492,9.726e-05,2]
[327542698,1716201245387,-409.27029601,9.726e-05,2]
[327542699,1716201245407,-1205.74461398,9.726e-05,2]
[327542700,1716201245428,-237.25590478,9.726e-05,2]
[327542701,1716201245450,-523.09941013,9.726e-05,2]
[327542702,1716201245471,-10526.87634551,9.726e-05,2]
[327542703,1716201245494,-2918.4686413,9.726e-05,2]
[327542704,1716201245521,-1167633.05055394,9.726e-05,2]
[327542705,1716201245544,-1042.7175055,9.726e-05,3]
[327542706,1716201245568,-299.92982284,0.0001,2]
[327542707,1716201245597,-792.29415639,0.0001,2]
[327542708,1716201245619,-428.48017839,0.0001,2]
[327542710,1716201250760,806.4726616,0.0001,2]
[327542712,1716201256649,289.22433229,9.239e-05,2]
[327542713,1716201257158,320728.1162605,9.239e-05,2]
[327542714,1716201260344,173.51087384,9.239e-05,2]
[327542715,1716201261135,292.35374371,9.239e-05,2]
[327542716,1716201261732,362.16409873,9.239e-05,2]
[327542717,1716201262107,945.5461607,9.239e-05,2]
[327542718,1716201263263,955.79803048,8.777e-05,2]
[327542719,1716201264050,300.61916409,9.239e-05,2]
[327542720,1716201264090,298.91571102,0.0001,2]
[327542722,1716201264477,657.3694327,9.239e-05,2]
[327542724,1716201272943,373.51823841,6.94e-05,2]
[327542726,1716201278981,289.22433229,9.239e-05,2]
[327542727,1716201279143,292.35374371,9.239e-05,2]
[327542728,1716201279715,362.16409873,9.239e-05,2]
[327542729,1716201280379,328.18116492,9.239e-05,2]
[327542731,1716201281211,955.79803048,8.777e-05,2]
[327542732,1716201286104,324.47621743,0.0001,2]
[327542735,1716201299130,292.35374371,0.0001,2]
[327542736,1716201299210,955.79803048,9.5e-05,2]
[327542737,1716201300660,289.22433229,0.0001,2]
[327542738,1716201303727,362.16409873,0.0001,2]
[327542751,1716201320683,289.22433229,0.0001,2]
[327542752,1716201321700,292.35374371,0.0001,2]
[327542753,1716201321745,955.79803048,9.5e-05,2]
[327542755,1716201323716,362.16409873,0.0001,2]
[327542757,1716201337144,292.35374371,0.0001,2]
[327542758,1716201338708,289.22433229,0.0001,2]
[327542760,1716201343224,955.79803048,9.5e-05,2]
[327542761,1716201349726,362.16409873,0.0001,2]
[327542763,1716201355142,349.52740516,0.0001,2]
[327542764,1716201360664,289.22433229,0.0001,2]
[327542766,1716201363552,955.79803048,9.5e-05,2]
[327542767,1716201367749,361.72434009,0.0001,2]
[327542770,1716201383340,313.11572079,0.0001,2]
[327542772,1716201385235,428.7431169,9.5e-05,2]
[327542776,1716201399854,13195.48410338,0.0001,2]
[327542778,1716201404230,945.54622201,0.0001,2]
[327542785,1716201433252,-195.02071198,0.00010957,2]
[327542786,1716201433303,-428.48017839,0.00010958,2]
[327542787,1716201433343,-482.78589181,0.00010958,2]
[327542788,1716201433359,-195.02071198,0.00010958,2]
[327542789,1716201433376,-428.48017839,0.00010958,2]
[327542790,1716201433396,-1983.92554527,0.00010958,2]
[327542791,1716201433406,-264.47,0.00010959,2]
[327542792,1716201433416,-220.4,0.00010959,2]
[327542793,1716201433426,-183.66,0.00010959,2]
[327542794,1716201433436,-153.05,0.00010959,2]
[327542795,1716201433446,-284.70678218,0.00010959,2]
[327542802,1716201468331,-1340.0,0.00010957,2]
[327542812,1716201540521,-1000.0,0.00010398,2]
[327542813,1716201540552,-428.48017839,0.00010956,2]
[327542819,1716201570607,157.19,8.294e-05,2]
[327542821,1716201579306,-154.93,0.00010445,2]
[327542822,1716201579407,-2937.68847016,0.00010957,2]
[327542823,1716201579471,-155.0,0.00010957,2]
[327542824,1716201579528,-549.0409506,0.00010957,2]
[327542825,1716201579582,-409.74863585,0.00010957,2]
[327542826,1716201579633,-480.58,0.00010959,2]
[327542827,1716201579683,-193.34,0.00010959,2]
[327542828,1716201579962,-198.76388678,0.00010999,2]
[327542834,1716201625636,-250.0,0.00010352,2]